bitfinex/quotes_SOLUSD_20220216
["timestamp","ask_amount","ask_price","bid_price","bid_amount"]
[1645049571249,14.675,102.26,102.2,28.6338]
[1645049571454,14.675,102.26,102.21,0.25]
[1645049571754,45.42521855,102.25,102.21,0.25]
[1645049572651,60.10241855,102.25,102.19,55.45774818]
[1645049573251,60.10241855,102.25,102.19,41.49774818]
[1645049579958,14.6772,102.25,102.19,41.49774818]
[1645049580158,29.5857,102.27,102.19,55.45774818]
[1645049580357,24.6947,102.27,102.2,0.25]
[1645049580658,24.6947,102.27,102.2,14.21]
[1645049580862,34.21167108,102.29,102.21,51.07068321]
[1645049582064,34.21167108,102.29,102.21,65.03068321]
[1645049582466,48.88227108,102.29,102.21,65.03068321]
[1645049583065,0.25,102.28,102.21,65.03068321]
[1645049589372,14.6706,102.29,102.21,65.03068321]
[1645049589573,22.9789,102.3,102.21,65.03068321]
[1645049589774,22.9789,102.3,102.22,4.889]
[1645049589973,22.9789,102.3,102.23,28.6276]
[1645049590478,22.9789,102.3,102.24,39.72422741]
[1645049590678,22.9789,102.3,102.24,53.68422741]
[1645049590876,0.25,102.29,102.24,53.68422741]
[1645049592505,22.9789,102.3,102.24,53.68422741]
[1645049593211,39.35098657,102.29,102.24,53.68422741]
[1645049595315,22.9789,102.3,102.24,53.68422741]
[1645049595513,0.25,102.29,102.24,53.68422741]
[1645049597112,0.25,102.29,102.26,39.56134855]
[1645049597311,3.03219997,102.28,102.26,39.56134855]
[1645049607923,0.25,102.29,102.26,39.56134855]
[1645049611949,3.03219997,102.28,102.26,39.56134855]
[1645049618661,3.03219997,102.28,102.23,13.96]
[1645049619662,3.03219997,102.28,102.24,43.87893531]
[1645049621764,3.03219997,102.28,102.23,13.96]
[1645049622065,25.87359997,102.28,102.22,36.4872]
[1645049622765,46.15736596,102.27,102.22,77.50450786]
[1645049625768,46.15736596,102.27,102.26,6.4136]
[1645049626270,22.8414,102.28,102.26,6.4136]
[1645049626670,14.9206,102.29,102.26,6.4136]
[1645049627270,56.16719489,102.29,102.26,6.4136]
[1645049628372,3.03219997,102.28,102.26,6.4136]
[1645049629674,34.22429157,102.27,102.26,6.4136]
[1645049630474,3.03219997,102.28,102.26,6.4136]
[1645049650421,41.29037971,102.28,102.26,6.4136]
[1645049653034,42.6596784,102.28,102.26,6.4136]
[1645049661879,4.40149866,102.28,102.26,6.4136]
[1645049672890,42.5838699,102.28,102.26,6.4136]
[1645049674892,4.40149866,102.28,102.26,6.4136]
[1645049675892,50.57932751,102.28,102.26,6.4136]
[1645049680705,1.36929869,102.27,102.26,6.4136]
[1645049681102,49.21002882,102.28,102.26,6.4136]
[1645049681303,49.21002882,102.28,102.21,23.5249]
[1645049681501,23.8121,102.27,102.21,23.5249]
[1645049681722,16.05184484,102.26,102.21,23.5249]
[1645049681921,35.00098062,102.25,102.21,23.5249]
[1645049682119,35.00098062,102.25,102.19,54.73638437]
[1645049682320,36.37762546,102.25,102.19,54.73638437]
[1645049683328,49.67748062,102.25,102.19,54.73638437]
[1645049684926,24.4457,102.24,102.19,54.73638437]
[1645049686524,14.6765,102.25,102.19,54.73638437]
[1645049686725,24.36164484,102.26,102.19,54.73638437]
[1645049688325,24.36164484,102.26,102.2,0.25]
[1645049688529,22.985,102.26,102.2,6.0]
[1645049688727,22.985,102.26,102.21,38.951388]
[1645049689626,39.68064484,102.27,102.21,38.951388]
[1645049689627,1.37664484,102.27,102.21,38.951388]
[1645049689829,0.99936484,102.27,102.21,38.951388]
[1645049690026,5.14,102.29,102.21,38.951388]
[1645049690631,46.92449799,102.29,102.22,13.96]
[1645049690826,42.03449799,102.29,102.23,44.48513651]
[1645049691029,0.25,102.29,102.23,44.48513651]
[1645049691426,14.9206,102.29,102.23,44.48513651]
[1645049692827,0.25,102.29,102.23,44.48513651]
[1645049693829,84.03105694,102.3,102.23,44.48513651]
[1645049694031,4.889,102.29,102.23,44.48513651]
[1645049694327,84.03105694,102.3,102.23,44.48513651]
[1645049695729,5.139,102.29,102.23,44.48513651]
[1645049698530,0.25,102.29,102.23,44.48513651]
[1645049703237,5.139,102.29,102.23,44.48513651]
[1645049703635,34.70315253,102.28,102.23,44.48513651]
[1645049706337,14.9209,102.29,102.23,44.48513651]
[1645049709039,14.9209,102.29,102.24,0.07134123]
[1645049711643,19.8099,102.29,102.24,0.07134123]
[1645049712845,14.9209,102.29,102.24,0.07134123]
[1645049713048,0.25,102.29,102.24,0.07134123]
[1645049724775,39.92656834,102.29,102.24,0.07134123]
[1645049739897,0.25,102.29,102.24,0.07134123]
[1645049740100,30.57792404,102.32,102.25,111.43]
[1645049740101,45.43519569,102.32,102.25,111.43]
[1645049740304,40.54619569,102.32,102.25,111.43]
[1645049740497,23.1478,102.32,102.25,111.43]
[1645049740899,62.41893758,102.32,102.26,45.02866487]
[1645049741497,0.25,102.31,102.26,68.33726487]
[1645049746511,0.25,102.31,102.26,82.29726487]
[1645049750633,0.25,102.31,102.26,37.2686]
[1645049753635,0.25,102.31,102.27,44.45933847]
[1645049754238,0.25,102.31,102.26,37.2686]
[1645049758840,0.25,102.31,102.27,37.742686]
[1645049761742,0.25,102.31,102.27,51.702686]
[1645049761943,24.2452,102.33,102.27,51.702686]
[1645049764945,24.2452,102.33,102.27,149.172686]
[1645049766353,24.2452,102.33,102.27,51.702686]
[1645049766653,24.2452,102.33,102.27,149.172686]
[1645049767154,24.2452,102.33,102.27,51.702686]
[1645049767852,24.2452,102.33,102.27,149.172686]
[1645049770255,24.2452,102.33,102.28,6.0]
[1645049770458,24.2452,102.33,102.29,35.52546873]
[1645049775166,24.2452,102.33,102.29,49.48546873]
[1645049775370,22.08723019,102.33,102.29,49.48546873]
[1645049781495,112.3,102.35,102.3,97.47]
[1645049781696,2.73199569,102.36,102.32,97.47]
[1645049781896,22.9748,102.37,102.33,13.96]
[1645049784202,22.9748,102.37,102.33,13.46]
[1645049785101,22.9748,102.37,102.34,34.79653734]
[1645049785500,3.03219997,102.36,102.34,34.79653734]
[1645049786100,3.03219997,102.36,102.33,13.46]
[1645049788804,38.23760915,102.36,102.33,13.46]
[1645049794112,35.20540918,102.36,102.33,13.46]
[1645049796616,22.9748,102.37,102.33,13.46]
[1645049796815,22.9748,102.37,102.34,0.25]
[1645049797520,59.9919791,102.37,102.33,13.46]
[1645049797718,59.9919791,102.37,102.33,55.34385224]
[1645049797918,59.9919791,102.37,102.34,0.25]
[1645049798320,3.03219997,102.36,102.34,0.25]
[1645049798523,22.9748,102.37,102.34,0.25]
[1645049798722,22.9748,102.37,102.34,14.21]
[1645049799124,19.5388,102.41,102.34,14.21]
[1645049799325,24.4468,102.4,102.34,14.21]
[1645049799524,47.38846401,102.39,102.34,14.21]
[1645049801127,47.38846401,102.39,102.34,13.96]
[1645049801327,0.25,102.38,102.34,13.96]
[1645049801527,47.38846401,102.39,102.34,13.96]
[1645049802746,47.38846401,102.39,102.35,0.25]
[1645049803044,47.38846401,102.39,102.35,14.21]
[1645049804447,47.38846401,102.39,102.35,52.05771353]
[1645049804650,24.4468,102.4,102.35,52.05771353]
[1645049804846,24.4468,102.4,102.35,57.56071353]
[1645049805750,41.14256449,102.39,102.35,57.56071353]
[1645049805949,41.14256449,102.39,102.35,51.80771353]
[1645049806348,24.4468,102.4,102.36,0.25]
[1645049806951,24.4468,102.4,102.36,14.21]
[1645049807350,58.79114249,102.4,102.36,14.21]
[1645049808855,24.4468,102.4,102.36,14.21]
[1645049809956,67.85386057,102.4,102.36,14.21]
[1645049810859,69.22964299,102.4,102.36,14.21]
[1645049812061,69.22964299,102.4,102.36,13.96]
[1645049815563,0.25,102.39,102.36,13.96]
[1645049817165,3.03219997,102.38,102.36,13.96]
[1645049818370,3.03219997,102.38,102.37,0.25]
[1645049819175,24.4468,102.4,102.37,0.25]
[1645049819374,3.03219997,102.39,102.37,0.25]
[1645049820371,39.05106932,102.39,102.37,0.25]
[1645049820794,39.05106932,102.39,102.36,13.96]
[1645049821395,3.03219997,102.39,102.36,13.96]
[1645049821595,3.03219997,102.39,102.37,0.25]
[1645049821796,3.03219997,102.39,102.37,14.21]
[1645049822898,24.4468,102.4,102.37,14.21]
[1645049823596,24.4468,102.4,102.37,28.8601]
[1645049824207,1.8184867,102.42,102.37,28.8601]
[1645049824401,26.5308867,102.42,102.38,40.92958875]
[1645049824701,25.15510428,102.42,102.38,69.53778875]
[1645049825198,26.5308867,102.42,102.38,69.53778875]
[1645049825801,25.15510428,102.42,102.38,69.53778875]
[1645049825999,25.15510428,102.42,102.38,54.88958875]
[1645049826403,0.44270428,102.42,102.38,54.88958875]
[1645049827402,0.44270428,102.42,102.38,69.53668875]
[1645049833707,0.44270428,102.42,102.39,0.25]
[1645049833909,0.44270428,102.42,102.4,13.96]
[1645049834109,3.03219997,102.41,102.4,13.96]
[1645049834307,0.44270428,102.42,102.4,13.96]
[1645049834707,0.44270428,102.42,102.41,3.0]
[1645049835110,0.47490425,102.42,102.39,13.96]
[1645049835311,38.03928083,102.42,102.39,13.96]
[1645049835510,0.47490425,102.42,102.39,13.96]
[1645049836723,0.47490425,102.42,102.4,3.0]
[1645049841824,0.44270428,102.42,102.4,3.0]
[1645049843526,0.44270428,102.42,102.41,0.25]
[1645049844129,0.44270428,102.42,102.41,14.21]
[1645049844932,0.44270428,102.42,102.41,13.96]
[1645049845432,0.47490425,102.42,102.41,13.96]
[1645049847958,0.47490425,102.42,102.4,3.0]
[1645049849260,0.47490425,102.42,102.39,13.96]
[1645049850662,1.85068667,102.42,102.36,13.96]
[1645049851463,43.53743997,102.41,102.36,13.96]
[1645049851662,52.47622239,102.41,102.36,13.96]
[1645049852364,52.47622239,102.41,102.35,41.23166755]
[1645049852565,52.47622239,102.41,102.33,23.6357]
[1645049852769,24.6652,102.4,102.33,23.6357]
[1645049852966,26.04098242,102.4,102.33,25.83752689]
[1645049853563,26.04098242,102.4,102.34,48.10901781]
[1645049854364,40.69658242,102.4,102.34,48.10901781]
[1645049855563,40.69658242,102.4,102.33,23.6357]
[1645049855766,45.58058242,102.4,102.33,23.6357]
[1645049856568,45.58058242,102.4,102.33,62.84644278]
[1645049856768,40.69658242,102.4,102.33,62.84644278]
[1645049857973,40.69658242,102.4,102.33,23.6357]
[1645049859071,45.58058242,102.4,102.33,23.6357]
[1645049860371,40.69658242,102.4,102.33,23.6357]
[1645049863677,45.58058242,102.4,102.33,23.6357]
[1645049867379,40.69658242,102.4,102.33,23.6357]
[1645049869486,4.884,102.39,102.33,23.6357]
[1645049869685,19.5404,102.39,102.33,23.6357]
[1645049870487,14.6564,102.39,102.33,23.6357]
[1645049870787,23.5078,102.38,102.33,23.6357]
[1645049871690,37.6413695,102.37,102.33,23.6357]
[1645049872388,23.5078,102.38,102.33,23.6357]
[1645049872590,23.5078,102.38,102.34,0.25]
[1645049874818,23.47884781,102.38,102.34,0.25]
[1645049895139,47.80361288,102.39,102.34,0.25]
[1645049895339,47.80361288,102.39,102.35,38.88404119]
[1645049895548,46.42783046,102.39,102.35,38.88404119]
[1645049896644,1.37578242,102.41,102.35,151.00504119]
[1645049897039,1.8184867,102.42,102.35,151.00504119]
[1645049897239,1.8184867,102.42,102.35,155.88804119]
[1645049897441,1.8184867,102.42,102.35,58.41804119]
[1645049897641,44.03706031,102.41,102.35,155.88804119]
[1645049898046,45.41284273,102.41,102.35,155.88804119]
[1645049898547,44.03706031,102.41,102.35,155.88804119]
[1645049898750,45.41284273,102.41,102.35,155.88804119]
[1645049899372,44.03706031,102.41,102.35,155.88804119]
[1645049902782,44.55741535,102.41,102.35,151.00504119]
[1645049903679,45.13407495,102.41,102.35,151.00504119]
[1645049903882,45.96806361,102.41,102.35,151.00504119]
[1645049910296,45.96806361,102.41,102.35,174.42084119]
[1645049910495,1.9310033,102.41,102.35,174.42084119]
[1645049912101,1.9310033,102.41,102.35,179.30384119]
[1645049913300,1.9310033,102.41,102.35,76.95084119]
[1645049913503,3.30678572,102.41,102.35,76.95084119]
[1645049914299,3.30678572,102.41,102.36,0.25]
[1645049918926,3.30678572,102.41,102.35,23.4158]
[1645049918927,22.84318572,102.41,102.35,23.4158]
[1645049919126,0.25,102.4,102.35,23.4158]
[1645049919528,24.19448242,102.4,102.35,23.4158]
[1645049919927,25.54882612,102.4,102.35,23.4158]
[1645049922833,25.54882612,102.4,102.36,0.25]
[1645049923032,25.54882612,102.4,102.35,23.4158]
[1645049923432,25.54882612,102.4,102.34,60.7804015]
[1645049923637,25.54882612,102.4,102.35,0.25]
[1645049927139,25.29882612,102.4,102.35,14.9015]
[1645049927346,23.9230437,102.4,102.35,14.9015]
[1645049929344,23.9230437,102.4,102.35,19.7855]
[1645049931744,23.9230437,102.4,102.35,14.9015]
[1645049937451,23.9230437,102.4,102.35,14.6515]
[1645049938852,23.9230437,102.4,102.36,0.25]
[1645049942255,23.9230437,102.4,102.36,14.9005]
[1645049942454,23.9230437,102.4,102.36,0.25]
[1645049944056,25.29882612,102.4,102.34,46.1273015]
[1645049944280,25.29882612,102.4,102.35,0.25]
[1645049944956,23.9230437,102.4,102.35,0.25]
[1645049945256,25.29882612,102.4,102.35,0.25]
[1645049964716,1.62578242,102.39,102.29,58.83988126]
[1645049964914,1.62578242,102.39,102.27,43.7298]
[1645049964915,6.26078242,102.38,102.27,43.7298]
[1645049965213,23.3036,102.37,102.27,38.8458]
[1645049965416,24.6579437,102.37,102.27,38.8458]
[1645049965615,36.64715859,102.36,102.29,43.16915643]
[1645049965814,23.3036,102.35,102.3,0.25]
[1645049966019,23.3036,102.35,102.3,14.9089]
[1645049966415,23.82395504,102.35,102.3,14.6589]
[1645049968220,23.82395504,102.35,102.29,4.886]
[1645049968422,23.82395504,102.35,102.28,14.6606]
[1645049968625,23.82395504,102.35,102.29,0.25]
[1645049968822,28.70995504,102.35,102.29,0.25]
[1645049969221,23.82395504,102.35,102.29,0.25]
[1645049969425,38.48605504,102.35,102.29,0.25]
[1645049972449,38.48605504,102.35,102.26,108.98965591]
[1645049972648,4.886,102.34,102.27,0.25]
[1645049972848,19.5503,102.34,102.27,0.25]
[1645049973248,24.1563,102.33,102.27,0.25]
[1645049973448,44.53165088,102.32,102.27,0.25]
[1645049976553,24.1563,102.33,102.27,14.9131]
[1645049977758,24.1563,102.33,102.27,17.11492689]
[1645049977953,24.1563,102.33,102.28,6.0]
[1645049978154,24.1563,102.33,102.29,14.66]
[1645049978353,24.1563,102.33,102.3,44.59475812]
[1645049978655,0.52035504,102.34,102.3,44.59475812]
[1645049982861,0.52035504,102.34,102.29,14.66]
[1645049983062,0.52035504,102.34,102.27,14.662]
[1645049983260,0.52035504,102.34,102.27,14.162]
[1645049983866,0.52035504,102.34,102.27,61.24447405]
[1645049984275,5.40635504,102.34,102.27,61.24447405]
[1645049984472,20.07005504,102.34,102.27,61.24447405]
[1645049985073,24.7067,102.33,102.27,61.24447405]
[1645049985270,24.7067,102.33,102.28,0.25]
[1645049986075,24.7067,102.33,102.27,61.24447405]
[1645049986274,24.7067,102.33,102.28,0.25]
[1645049989896,24.7067,102.33,102.28,14.9119]
[1645049992701,24.7067,102.33,102.28,0.25]
[1645049993401,24.7067,102.33,102.27,47.08247405]
[1645049994505,24.7067,102.33,102.27,61.74567405]
[1645049994703,24.7067,102.33,102.28,0.25]
[1645050000535,24.7067,102.33,102.28,14.9122]
[1645050014354,24.7067,102.33,102.28,112.3822]
[1645050019861,24.7067,102.33,102.28,14.9122]
[1645050020663,24.7067,102.33,102.28,112.3822]
[1645050025970,24.7067,102.33,102.28,14.9122]
[1645050026792,24.7067,102.33,102.28,112.3822]
[1645050032379,24.7067,102.33,102.28,14.9122]
[1645050033081,24.7067,102.33,102.28,112.3822]
[1645050038097,0.52035504,102.34,102.28,112.3822]
[1645050038296,0.52035504,102.34,102.29,103.47]
[1645050038498,0.52035504,102.34,102.3,14.6576]
[1645050039195,0.52035504,102.34,102.31,97.47]
[1645050039597,0.52035504,102.34,102.32,14.6564]
[1645050039999,0.52035504,102.34,102.33,2.82410182]
[1645050040397,0.52035504,102.34,102.32,14.6564]
[1645050040596,0.55255501,102.34,102.32,14.6564]
[1645050044318,0.55255501,102.34,102.33,2.82113207]
[1645050044517,0.52035504,102.34,102.33,2.82113207]
[1645050047817,0.52035504,102.34,102.33,3.07113207]
[1645050050325,0.52035504,102.34,102.33,2.82113207]
[1645050051820,0.52035504,102.34,102.33,3.07113207]
[1645050058442,0.52035504,102.34,102.33,2.82113207]
[1645050063283,39.02642628,102.35,102.33,2.82113207]
[1645050064681,0.44438538,102.36,102.33,2.82113207]
[1645050065582,45.28538882,102.36,102.33,2.82113207]
[1645050065790,0.28219997,102.35,102.3,14.6583]
[1645050065988,0.28219997,102.35,102.27,68.4431]
[1645050066188,24.53069997,102.35,102.28,6.0]
[1645050066388,24.53069997,102.35,102.28,0.25]
[1645050066589,24.53069997,102.35,102.28,6.25]
[1645050066785,31.85816107,102.34,102.28,0.25]
[1645050066985,23.8607,102.33,102.28,0.25]
[1645050067185,23.8607,102.33,102.28,6.25]
[1645050067387,23.8607,102.33,102.28,20.9112]
[1645050068389,40.75022921,102.32,102.28,20.9112]
[1645050069586,23.8607,102.33,102.28,20.9112]
[1645050070789,23.8607,102.33,102.29,61.22330693]
[1645050075394,0.44438538,102.36,102.29,63.43636029]
[1645050075594,0.44438538,102.36,102.31,14.6574]
[1645050075794,5.57938538,102.36,102.28,6.0]
[1645050075994,24.4734,102.35,102.28,6.0]
[1645050076194,4.886,102.34,102.28,6.0]
[1645050076693,39.54246322,102.33,102.28,6.0]
[1645050077096,39.54246322,102.33,102.29,0.25]
[1645050077494,39.54246322,102.33,102.29,14.9116]
[1645050092027,24.4734,102.35,102.29,49.21514551]
[1645050092325,24.4734,102.35,102.29,51.42819887]
[1645050092726,24.4734,102.35,102.29,75.17419887]
[1645050093129,35.53093027,102.34,102.29,75.17419887]
[1645050094229,35.53093027,102.34,102.29,172.90419887]
[1645050096534,24.4734,102.35,102.29,172.90419887]
[1645050097837,24.4734,102.35,102.31,14.6561]
[1645050098135,34.17337441,102.34,102.31,14.6561]
[1645050098335,34.17337441,102.34,102.32,2.08490925]
[1645050100443,34.17337441,102.34,102.32,16.74150925]
[1645050105150,0.03219997,102.33,102.32,16.74150925]
[1645050106477,34.17337441,102.34,102.32,16.74150925]
[1645050115186,0.03219997,102.33,102.32,14.6566]
[1645050119199,0.03219997,102.33,102.32,112.3866]
[1645050119799,0.03219997,102.33,102.32,136.9708]
[1645050119999,0.44438538,102.36,102.32,139.09101694]
[1645050127108,38.67508314,102.37,102.32,139.09101694]
[1645050127309,38.67508314,102.37,102.34,14.6521]
[1645050127910,38.67508314,102.37,102.35,0.10355046]
[1645050128110,0.03219997,102.36,102.33,92.22367467]
[1645050128310,0.03219997,102.36,102.33,146.5703]
[1645050128510,0.03219997,102.36,102.35,14.6521]
[1645050130517,23.419,102.4,102.35,61.94507417]
[1645050131714,23.419,102.4,102.35,159.67507417]
[1645050136145,25.947595,102.39,102.35,159.67507417]
[1645050136450,25.947595,102.39,102.35,112.48565046]
[1645050137343,23.419,102.4,102.35,112.48565046]
[1645050138746,70.02024276,102.4,102.35,151.69421822]
[1645050141151,23.419,102.4,102.35,151.69421822]
[1645050144755,23.419,102.4,102.35,14.75565046]
[1645050146553,27.42175181,102.39,102.35,14.75565046]
[1645050146954,27.42175181,102.39,102.37,14.6491]
[1645050147353,23.419,102.4,102.37,14.6491]
[1645050147758,0.03219997,102.39,102.37,14.6491]
[1645050149958,0.03219997,102.39,102.38,2.11357748]
[1645050150861,66.48035665,102.4,102.38,2.11357748]
[1645050151663,0.03219997,102.39,102.38,2.11357748]
[1645050152266,23.419,102.4,102.38,2.11357748]
[1645050154163,64.79005085,102.4,102.38,2.11357748]
[1645050154664,0.03219997,102.39,102.38,2.11357748]
[1645050155065,0.03219997,102.39,102.37,14.6491]
[1645050155670,0.03219997,102.39,102.38,0.10567888]
[1645050156070,64.79005085,102.4,102.38,0.10567888]
[1645050156270,0.03219997,102.39,102.38,0.10567888]
[1645050156472,64.79005085,102.4,102.38,0.10567888]
[1645050157373,0.03219997,102.39,102.38,0.10567888]
[1645050158289,0.03219997,102.39,102.37,14.6491]
[1645050159091,0.03219997,102.39,102.38,2.11357748]
[1645050159591,0.03219997,102.39,102.37,14.6491]
[1645050164006,64.79005085,102.4,102.38,2.11357748]
[1645050164806,64.79005085,102.4,102.37,14.6491]
[1645050168208,0.03219997,102.39,102.37,14.6491]
[1645050170411,0.03219997,102.39,102.38,2.11033934]
[1645050172218,0.03219997,102.39,102.37,14.6491]
[1645050173118,64.79005085,102.4,102.38,2.11033934]
[1645050176022,23.419,102.4,102.38,2.11033934]
[1645050177545,61.43560925,102.4,102.38,2.11033934]
[1645050179142,0.03219997,102.39,102.37,14.6491]
[1645050181141,23.419,102.4,102.38,0.10551697]
[1645050181342,64.18480793,102.4,102.38,0.10551697]
[1645050181843,0.03219997,102.39,102.37,14.6491]
[1645050184144,0.03219997,102.39,102.38,2.11033934]
[1645050185749,0.03219997,102.39,102.37,14.6491]
[1645050187251,23.419,102.4,102.38,2.11033934]
[1645050188658,23.419,102.4,102.38,16.75833934]
[1645050189253,0.5766596,102.41,102.38,16.75833934]
[1645050190858,0.5766596,102.41,102.4,14.6435]
[1645050191257,0.5766596,102.41,102.4,14.74845678]
[1645050198568,0.5766596,102.41,102.4,112.47845678]
[1645050198869,0.75201696,102.43,102.4,112.47845678]
[1645050199866,0.75201696,102.43,102.42,97.73]
[1645050200269,0.75201696,102.43,102.42,115.3686]
[1645050201369,0.75201696,102.43,102.42,17.6386]
[1645050201769,0.75201696,102.43,102.42,115.3686]
[1645050202171,0.75201696,102.43,102.42,164.0486]
[1645050202769,0.75201696,102.43,102.42,178.5205]
[1645050204608,0.4853214,102.44,102.42,178.5205]
[1645050205503,0.4853214,102.44,102.43,133.01563668]
[1645050205909,0.43262078,102.45,102.43,147.65143668]
[1645050206306,0.65026036,102.49,102.44,1.36895982]
[1645050206506,21.77528976,102.5,102.44,1.36895982]
[1645050207402,21.77528976,102.5,102.45,50.440334]
[1645050215311,0.466917,102.51,102.47,14.6342]
[1645050215510,0.466917,102.51,102.47,112.3642]
[1645050216412,0.466917,102.51,102.49,14.6299]
[1645050216614,0.466917,102.51,102.5,43.52093222]
[1645050217715,0.49911697,102.51,102.5,43.52093222]
[1645050218417,0.49911697,102.51,102.5,58.15083222]
[1645050218614,0.466917,102.51,102.5,58.15083222]
[1645050220017,0.466917,102.51,102.5,61.15083222]
[1645050223019,0.6453706,102.51,102.5,61.15083222]
[1645050223819,0.6453706,102.51,102.5,158.88083222]
[1645050224421,0.6453706,102.51,102.5,61.15083222]
[1645050226126,0.67757057,102.51,102.5,58.15083222]
[1645050227331,0.6453706,102.51,102.5,58.98875319]
[1645050227529,0.6453706,102.51,102.5,156.71875319]
[1645050227731,0.6453706,102.51,102.5,58.98875319]
[1645050231065,0.4652481,102.56,102.53,156.5]
[1645050231264,137.56919686,102.6,102.55,97.73]
[1645050231464,0.65994392,102.59,102.55,97.73]
[1645050231666,1.05433992,102.6,102.55,97.73]
[1645050231969,23.5527,102.62,102.57,97.73]
[1645050232165,28.4267,102.62,102.58,46.10033627]
[1645050232364,0.466146,102.63,102.58,217.21743627]
[1645050232665,0.466146,102.63,102.6,146.41]
[1645050232867,0.466146,102.63,102.61,3.0]
[1645050233267,0.466146,102.63,102.62,112.3401]
[1645050233667,0.61028642,102.64,102.62,112.3401]
[1645050234566,0.61028642,102.64,102.63,3.0]
[1645050234766,0.61028642,102.64,102.63,17.6098]
[1645050234968,0.61028642,102.64,102.63,115.3398]
[1645050235173,0.61028642,102.64,102.63,17.6098]
[1645050236268,0.61028642,102.64,102.63,115.3398]
[1645050236871,0.61028642,102.64,102.63,17.6098]
[1645050238774,0.61028642,102.64,102.63,115.3398]
[1645050238978,0.61028642,102.64,102.63,17.6098]
[1645050239974,0.11028642,102.64,102.63,115.3398]
[1645050242275,0.14248639,102.64,102.63,115.3398]
[1645050242478,0.14248639,102.64,102.63,112.3398]
[1645050242876,0.14248639,102.64,102.63,97.73]
[1645050243276,0.14248639,102.64,102.62,14.2552]
[1645050243476,0.14248639,102.64,102.63,1.87153389]
[1645050243676,0.14248639,102.64,102.61,14.6097]
[1645050243876,0.14248639,102.64,102.59,53.551]
[1645050244277,0.14248639,102.64,102.6,146.41]
[1645050244479,0.14248639,102.64,102.6,97.73]
[1645050245177,0.03219997,102.64,102.59,97.73]
[1645050245377,0.03219997,102.64,102.61,97.73]
[1645050246579,0.03219997,102.64,102.62,0.25]
[1645050249891,0.03219997,102.64,102.63,3.0]
[1645050250088,0.03219997,102.64,102.62,0.25]
[1645050252288,0.03219997,102.64,102.63,3.0]
[1645050252488,36.92262557,102.65,102.63,3.0]
[1645050253689,1.17364452,102.65,102.63,3.0]
[1645050256115,0.03219997,102.64,102.62,0.25]
[1645050256317,0.03219997,102.64,102.63,3.0]
[1645050256619,0.03219997,102.64,102.62,0.25]
[1645050258916,0.03219997,102.64,102.63,3.0]
[1645050259121,1.17364452,102.65,102.63,100.73]
[1645050260219,1.17364452,102.65,102.64,47.88794923]
[1645050260421,1.17364452,102.65,102.64,160.22334923]
[1645050260620,1.17364452,102.65,102.64,208.90334923]
[1645050261223,0.7400223,102.66,102.64,267.67334923]
[1645050261423,0.4734179,102.68,102.66,97.73]
[1645050261625,1.0070657,102.68,102.67,112.3322]
[1645050262321,1.0070657,102.68,102.67,171.1022]
[1645050262524,0.4770662,102.7,102.67,173.31756845]
[1645050262724,0.21791876,102.72,102.69,97.73]
[1645050262922,0.21791876,102.72,102.7,112.3285]
[1645050263527,0.21791876,102.72,102.7,14.5985]
[1645050263724,0.21791876,102.72,102.69,48.68]
[1645050263925,0.21791876,102.72,102.7,3.02]
[1645050264623,0.21791876,102.72,102.7,100.75]
[1645050265327,0.21791876,102.72,102.7,3.02]
[1645050265825,0.25011873,102.72,102.7,3.02]
[1645050266028,0.21791876,102.72,102.7,3.02]
[1645050267328,0.21791876,102.72,102.7,39.74592385]
[1645050267527,0.21791876,102.72,102.7,3.02]
[1645050268331,3.272e-05,102.74,102.71,97.73]
[1645050268633,3.272e-05,102.74,102.72,145.08998175]
[1645050268634,0.43587024,102.74,102.72,145.08998175]
[1645050269330,0.26067786,102.76,102.72,218.45518175]
[1645050270131,0.26067786,102.76,102.73,2.21536845]
[1645050270435,0.26067786,102.76,102.75,171.0896]
[1645050270830,0.26067786,102.76,102.75,221.71003914]
[1645050271036,0.48872254,102.8,102.75,221.71003914]
[1645050271037,3.98200552,102.83,102.76,0.26067786]